bitfinex-derivatives/quotes_ETHF0:USTF0_20240907
["timestamp","ask_amount","ask_price","bid_price","bid_amount"]
[1725687823341,0.44194,2263.3,2263.1,1.54577]
[1725687823843,1.71193,2263.4,2263.1,1.54577]
[1725687824346,0.44194,2263.3,2263.1,1.54577]
[1725687824548,1.71193,2263.4,2263.1,1.54577]
[1725687825036,0.44194,2263.3,2263.1,1.54577]
[1725687825243,1.71193,2263.4,2263.1,1.54577]
[1725687826042,1.71193,2263.4,2263.2,0.44196]
[1725687827852,1.71193,2263.4,2263.1,1.54576]
[1725687828157,1.27,2263.4,2263.1,1.1038]
[1725687828342,0.3774,2263.3,2263.1,1.1038]
[1725687828650,0.81935,2263.3,2263.1,1.1038]
[1725687829148,0.81935,2263.3,2263.1,1.54577]
[1725687829641,1.71193,2263.4,2263.2,0.44196]
[1725687830047,1.71193,2263.4,2263.1,1.54576]
[1725687830443,0.44194,2263.3,2263.1,1.54576]
[1725687832755,1.27,2263.3,2263.1,1.1038]
[1725687832946,1.6494,2263.3,2263.1,1.1038]
[1725687833249,2.09135,2263.3,2263.1,1.54578]
[1725687834651,0.82135,2263.3,2263.1,1.54578]
[1725687834853,0.44193,2263.4,2263.2,0.44196]
[1725687835053,2.10511,2263.5,2263.2,0.44196]
[1725687835349,1.7119,2263.5,2263.3,0.44193]
[1725687835743,1.7119,2263.5,2263.4,0.3681]
[1725687836256,6.1303,2263.5,2263.4,0.3681]
[1725687836849,1.7119,2263.5,2263.4,0.3681]
[1725687837352,0.44193,2263.4,2263.2,0.44194]
[1725687837652,0.44193,2263.4,2263.2,0.82654]
[1725687840650,0.44191,2263.5,2263.2,0.3846]
[1725687840956,4.91969,2263.6,2263.3,0.44194]
[1725687841253,0.44191,2263.5,2263.3,0.44194]
[1725687842352,1.71192,2263.4,2263.2,0.82655]
[1725687842555,2.07922,2263.4,2263.2,0.82655]
[1725687843765,0.3603,2263.3,2263.2,0.44195]
[1725687843960,0.3603,2263.3,2263.2,0.82055]
[1725687844960,1.27,2263.4,2263.2,0.82055]
[1725687846061,1.27,2263.4,2263.2,1.95630381]
[1725687847557,1.54679,2263.3,2263.2,1.13575381]
[1725687847761,0.44198,2263.1,2262.9,1.50665381]
[1725687848263,0.442,2263.0,2262.9,1.50665381]
[1725687849663,0.44196,2263.2,2263.0,0.44199]
[1725687849866,0.44196,2263.2,2263.0,1.58834196]
[1725687850070,0.44195,2263.3,2262.9,1.51725196]
[1725687850268,0.44197,2263.2,2263.0,0.44199]
[1725687851164,1.27,2263.4,2263.1,0.44197]
[1725687851465,0.44194,2263.3,2263.2,1.1273]
[1725687857473,0.44194,2263.3,2263.2,2.27365196]
[1725687857672,1.27,2263.4,2263.2,1.1273]
[1725687857967,1.71193,2263.4,2263.2,2.27365196]
[1725687858173,1.71193,2263.4,2263.2,2.71561196]
[1725687858573,0.44194,2263.3,2263.2,2.27365196]
[1725687860077,1.71193,2263.4,2263.2,2.71561196]
[1725687860273,0.44194,2263.3,2263.2,2.27365196]
[1725687860473,1.27,2263.4,2263.2,2.71561196]
[1725687860474,1.71193,2263.4,2263.2,2.71561196]
[1725687860869,1.71193,2263.4,2263.2,2.27365196]
[1725687861070,1.71193,2263.4,2263.2,2.71561196]
[1725687861273,1.27,2263.4,2263.2,2.27365196]
[1725687861577,1.71193,2263.4,2263.2,2.27365196]
[1725687861971,1.71193,2263.4,2263.3,1.14635196]
[1725687862778,1.27,2263.4,2263.3,1.14635196]
[1725687863373,1.27,2263.4,2263.3,1.58829196]
[1725687863673,1.71192,2263.4,2263.3,1.14635196]
[1725687864172,1.71192,2263.4,2263.2,1.56924]
[1725687867684,0.44192,2263.4,2263.2,1.56924]
[1725687868082,0.4419,2263.5,2263.3,0.44193]
[1725687870190,1.27,2263.6,2263.2,1.56924]
[1725687870378,0.44191,2263.5,2263.2,1.56924]
[1725687872186,0.44192,2263.4,2263.3,1.14635196]
[1725687874473,0.44192,2263.4,2263.2,2.71559196]
[1725687874683,0.44192,2263.4,2263.3,1.14635196]
[1725687875185,0.44192,2263.4,2263.2,2.71559196]
[1725687876879,0.44192,2263.4,2263.1,1.70363072]
[1725687876880,2.65176,2263.2,2263.1,0.11435197]
[1725687877179,2.65176,2263.2,2262.5,2.83973072]
[1725687877180,0.44207,2262.6,2262.5,2.83973072]
[1725687877386,0.44207,2262.6,2262.5,5.05135969]
[1725687877586,0.44207,2262.6,2262.5,1.1361]
[1725687877791,0.44207,2262.6,2262.0,3.2078]
[1725687877792,0.44212,2262.4,2262.2,1.70363072]
[1725687877990,4.4778,2262.6,2262.2,2.09733072]
[1725687878186,4.875,2262.6,2262.2,2.09733072]
[1725687878491,0.44213,2262.3,2262.2,2.09733072]
[1725687878692,0.44213,2262.3,2262.2,4.30924433]
[1725687878891,0.44213,2262.3,2262.2,0.3937]
[1725687882192,1.27,2262.3,2262.1,0.7424]
[1725687882488,3.605,2262.6,2262.1,0.7424]
[1725687882489,0.44215,2262.2,2262.1,0.3653]
[1725687883084,0.44215,2262.2,2261.8,0.3949]
[1725687883085,8.8986,2262.2,2261.8,0.3949]
[1725687883398,1.10534,2262.3,2261.8,0.3949]
[1725687883399,0.44221,2261.9,2261.8,0.3949]
[1725687885984,0.4422,2262.0,2261.8,0.3949]
[1725687886190,1.6353,2262.2,2262.0,0.44218]
[1725687886191,0.44216,2262.2,2262.0,0.44218]
[1725687886389,0.44216,2262.2,2262.1,0.3702]
[1725687891700,0.44219,2262.1,2261.8,0.83712]
[1725687891998,0.44219,2262.1,2261.9,0.83871]
[1725687892192,0.44219,2262.1,2261.9,0.3965]
[1725687892392,0.44219,2262.1,2261.9,0.8387]
[1725687892792,0.44219,2262.0,2261.9,0.3965]
[1725687893602,0.44218,2262.1,2261.9,4.8173]
[1725687893797,0.44219,2262.0,2261.9,0.3965]
[1725687894309,2.37534,2262.3,2261.9,0.3965]
[1725687894602,0.44219,2262.0,2261.9,0.3965]
[1725687902106,1.10516,2262.7,2261.9,15.2951]
[1725687902409,1.27,2262.7,2262.3,0.44213]
[1725687902596,0.44209,2262.5,2262.4,1.1597]
[1725687903410,0.44218,2262.1,2261.9,0.44221]
[1725687903612,0.44218,2262.1,2262.0,1.1597]
[1725687903909,0.44213,2262.4,2262.0,5.5805]
[1725687904112,3.6499,2262.5,2262.0,1.1597]
[1725687904409,1.71209,2262.6,2262.4,0.4421]
[1725687904604,0.44207,2262.6,2262.5,1.1307]
[1725687905006,0.44207,2262.7,2262.5,5.5507]
[1725687905201,0.44207,2262.7,2262.5,1.1307]
[1725687905407,0.44207,2262.6,2262.5,1.1307]
[1725687905805,0.44207,2262.6,2262.5,5.5507]
[1725687908708,0.44207,2262.7,2262.5,5.99279]
[1725687908910,0.44207,2262.7,2262.5,1.57279]
[1725687909211,0.44207,2262.6,2262.5,1.1307]
[1725687910111,7.67890837,2263.4,2262.5,12.8207]
[1725687910418,0.44192,2263.4,2263.1,0.44197]
[1725687910715,0.44194,2263.3,2263.2,1.1366]
[1725687911114,0.44203,2262.9,2262.6,0.44207]
[1725687911314,0.44203,2262.9,2262.7,0.7717]
[1725687911708,0.44202,2262.9,2262.7,1.21374]
[1725687913916,0.44202,2262.9,2262.7,0.7717]
[1725687914112,0.44202,2262.9,2262.7,0.3751]
[1725687914113,0.44204,2262.8,2262.7,0.3751]
[1725687914315,0.44207,2262.6,2262.4,0.83651]
[1725687914510,0.44207,2262.6,2262.5,0.3885]
[1725687915020,0.3804,2262.8,2262.5,0.3885]
[1725687915021,0.44207,2262.7,2262.5,0.3885]
[1725687915219,0.44207,2262.7,2262.5,0.83059]
[1725687915720,0.3603,2263.2,2262.8,0.44202]
[1725687916014,0.44203,2262.9,2262.6,4.91986]
[1725687916219,0.44204,2262.8,2262.6,4.91986]
[1725687916423,0.44204,2262.8,2262.6,3.2078]
[1725687917018,0.44204,2262.8,2262.6,3.64987]
[1725687917815,0.44204,2262.8,2262.6,3.2078]
[1725687918011,0.44206,2262.7,2262.5,0.3885]
[1725687918211,0.44206,2262.7,2262.5,0.83059]
[1725687918515,0.44204,2262.8,2262.6,0.44207]
[1725687918714,0.44199,2263.1,2262.8,0.44202]
[1725687918914,0.3603,2263.2,2262.9,0.3638]
[1725687918915,0.442,2263.0,2262.9,0.3638]
[1725687920024,3.44617561,2263.6,2262.9,9.2608]
[1725687920226,0.44192,2263.4,2263.2,0.44194]
[1725687920430,0.44192,2263.4,2263.3,0.7304]
[1725687921228,0.44191,2263.5,2263.3,0.7304]
[1725687922025,0.44192,2263.4,2263.3,0.7304]
[1725687924323,0.44191,2263.5,2263.3,0.7304]
[1725687928029,1.27,2263.7,2263.3,1.17234]
[1725687928422,3.2078,2263.6,2263.3,1.17234]
[1725687928620,0.44191,2263.5,2263.3,1.17234]
[1725687931233,3.2078,2263.6,2263.3,1.17234]
[1725687931426,0.4419,2263.5,2263.3,1.17234]
[1725687935629,0.4419,2263.5,2263.3,0.80204]
[1725687936339,0.4419,2263.5,2263.4,0.3691]
[1725687939633,3.64969,2263.6,2263.4,0.3691]
[1725687939835,0.4419,2263.5,2263.4,0.3691]
[1725687941044,0.4419,2263.5,2263.4,1.6391]
[1725687941343,0.44189,2263.6,2263.4,2.08102]
[1725687941741,0.44189,2263.6,2263.4,1.6391]
[1725687944136,0.44189,2263.6,2263.4,2.08102]
[1725687944442,0.44189,2263.6,2263.4,1.6391]
[1725687947442,0.44189,2263.6,2263.4,2.08102]
[1725687947946,0.44189,2263.6,2263.4,1.6391]
[1725687957336,0.4419,2263.5,2263.4,1.6391]
[1725687957742,0.4419,2263.5,2263.4,0.3691]
[1725687961048,0.3761,2263.6,2263.3,3.5679]
[1725687961245,1.10485,2263.3,2263.0,3.5754]
[1725687961445,0.44198,2263.1,2263.0,3.5754]
[1725687962042,0.44198,2263.1,2263.0,0.3676]
[1725687963051,0.3761,2263.2,2262.8,0.7835]
[1725687963052,0.44201,2263.0,2262.8,0.7835]
[1725687963252,0.44201,2263.0,2262.8,1.1542]
[1725687963645,0.44201,2263.0,2262.8,1.59623]
[1725687963844,0.3737,2263.1,2262.8,1.1542]
[1725687963845,0.44202,2262.9,2262.8,1.1542]
[1725687965552,0.44202,2262.9,2262.8,0.7835]
[1725687969254,3.2078,2263.1,2262.8,0.7835]
[1725687969557,0.44202,2262.9,2262.8,2.0535]
[1725687970252,1.10495,2263.2,2262.8,2.0535]
[1725687970851,0.44202,2262.9,2262.8,2.0535]
[1725687971347,0.3952,2263.3,2262.8,2.49552]
[1725687971662,0.442,2263.0,2262.8,2.49552]
[1725687971952,0.44199,2263.1,2262.9,0.44201]
[1725687972145,0.44199,2263.1,2263.0,0.364]
[1725687973946,0.44197,2263.2,2263.0,0.364]
[1725687974151,0.44197,2263.2,2263.0,0.80599]
[1725687974152,0.44196,2263.2,2263.0,0.80599]
[1725687974348,0.44196,2263.2,2263.1,0.3892]
[1725687984262,0.44196,2263.2,2262.8,3.6005]
[1725687984263,0.44202,2262.9,2262.8,3.6005]
[1725687984462,0.44202,2262.9,2262.8,3.9726]
[1725687984970,0.44202,2262.9,2262.8,0.7648]
[1725687986677,0.44201,2263.0,2262.8,0.7648]
[1725687987559,0.44198,2263.2,2262.9,0.44201]
[1725687987763,0.44198,2263.2,2263.0,0.3593]
[1725687988166,0.44198,2263.2,2263.1,0.3741]
[1725688000474,0.44198,2263.1,2263.0,0.3593]
[1725688000670,0.442,2263.0,2262.9,1.53677489]
[1725688000981,0.442,2263.0,2262.9,0.3941]
[1725688003882,1.547,2263.0,2262.9,0.3941]
[1725688004087,1.547,2263.0,2262.8,3.6005]
[1725688004088,0.44202,2262.9,2262.8,3.6005]
[1725688005588,0.44202,2262.9,2262.8,4.74317489]
[1725688006886,0.44202,2262.9,2262.8,3.6005]
[1725688007691,0.44201,2263.0,2262.8,3.6005]
[1725688007992,0.44201,2263.0,2262.9,0.3671]
[1725688009492,3.64977,2263.2,2262.9,0.3671]
[1725688010188,3.64977,2263.2,2262.9,0.8091]
[1725688010692,0.44197,2263.2,2262.9,0.8091]
[1725688010991,0.44195,2263.3,2263.0,0.442]
[1725688011287,1.6606,2263.6,2263.1,0.3904]
[1725688011491,1.6606,2263.6,2263.2,0.81456]
[1725688011492,0.44191,2263.5,2263.2,0.81456]
[1725688011691,0.44192,2263.4,2263.2,0.7554]
[1725688013694,0.4419,2263.5,2263.2,0.7554]
[1725688014586,0.44192,2263.4,2263.2,0.7554]
[1725688018295,2.0493,2263.6,2263.2,0.7554]
[1725688018491,0.4419,2263.5,2263.2,1.19734]
[1725688020993,0.4419,2263.5,2263.2,1.19736]
[1725688028506,0.44189,2263.6,2263.3,0.44193]
[1725688028696,0.4419,2263.5,2263.3,1.14267489]
[1725688029003,0.44189,2263.6,2263.3,0.44194]
[1725688029503,0.4419,2263.5,2263.2,3.61001489]
[1725688029708,0.44189,2263.6,2263.3,0.44194]
[1725688030299,3.5771,2263.7,2263.3,0.44194]
[1725688030300,0.4419,2263.5,2263.3,0.44194]
[1725688030499,0.4419,2263.5,2263.2,2.46735]
[1725688031003,0.44189,2263.6,2263.3,0.44194]
[1725688033698,0.4419,2263.5,2263.3,0.44194]
[1725688034102,0.4419,2263.5,2263.2,2.46734]
[1725688034607,0.4419,2263.5,2263.3,0.44194]
[1725688035006,0.44189,2263.6,2263.3,0.44194]
[1725688038703,3.64968,2263.7,2263.4,0.44192]
[1725688038903,3.64968,2263.7,2263.5,0.3734]
[1725688039107,3.64968,2263.7,2263.6,0.3709]
[1725688039307,3.64968,2263.7,2263.6,0.7491]
[1725688039505,0.44188,2263.7,2263.6,0.7491]
[1725688043411,0.59384914,2264.0,2263.6,3.9569]
[1725688043705,1.35737424,2264.6,2263.9,4.4778]
[1725688043910,0.33161902,2264.6,2264.5,1.27]
[1725688044106,0.6600766,2264.9,2264.5,1.27]
[1725688044307,0.6600766,2264.9,2264.6,0.3679]
[1725688044503,0.44165,2264.8,2264.6,0.3679]
[1725688044910,0.44164,2264.9,2264.6,0.3679]
[1725688045107,0.66147924,2264.9,2264.6,0.3679]
[1725688045301,0.44165,2264.8,2264.6,0.3679]
[1725688045502,0.44164,2264.9,2264.6,0.3679]
[1725688046011,0.66596666,2264.9,2264.6,0.3679]
[1725688046813,0.44165,2264.8,2264.6,0.3679]
[1725688049504,0.66698128,2264.9,2264.6,0.3679]
[1725688049707,0.44164,2264.9,2264.6,0.3679]
[1725688049918,0.44164,2264.9,2264.7,1.27]
[1725688050215,0.6655229,2264.9,2264.7,1.27]
[1725688051211,0.44165,2264.8,2264.7,1.27]
[1725688053417,0.44165,2264.8,2264.6,0.3679]
[1725688059917,0.44161,2265.0,2264.7,1.71166]
[1725688060719,4.0348,2265.1,2264.8,0.44164]
[1725688061020,4.0348,2265.1,2264.6,0.3679]
[1725688061021,3.2078,2265.1,2264.9,2.45141]
[1725688061325,3.2078,2265.1,2265.0,0.44161]
[1725688061526,3.2078,2265.1,2265.0,0.80711]
[1725688062321,3.2078,2265.1,2265.0,0.3655]
[1725688063622,0.44155,2265.3,2265.0,2.07711]
[1725688065218,1.20781,2265.5,2265.2,1.71155]
[1725688065420,1.20781,2265.5,2265.0,0.3655]
[1725688065421,3.64928,2265.7,2265.3,2.0152]
[1725688065626,0.44148,2265.7,2265.4,0.82132]
[1725688065827,0.44146,2265.8,2265.5,1.71151]
[1725688066026,0.44146,2265.8,2265.5,1.27]
[1725688066528,0.44147,2265.7,2265.5,1.27]
[1725688067725,0.44143,2265.9,2265.6,1.71148]
[1725688067932,3.88759561,2266.0,2265.7,0.7512]
[1725688068328,3.88759561,2266.0,2265.8,0.3798]
[1725688068533,0.44142,2266.0,2265.8,0.3798]
[1725688069423,0.44138,2266.2,2265.9,1.27]
[1725688069629,0.44136,2266.3,2265.9,1.71142]
[1725688070024,0.44135,2266.3,2265.9,1.27]
[1725688070439,0.44138,2266.2,2265.9,1.27]
[1725688070830,0.4414,2266.1,2265.9,1.27]
[1725688071531,0.44139,2266.1,2265.9,1.27]
[1725688071738,0.44139,2266.1,2265.8,3.5876]
[1725688071930,0.44139,2266.1,2265.9,1.27]
[1725688072827,0.58293443,2266.4,2265.9,1.27]
[1725688072828,0.44141,2266.0,2265.9,1.27]
[1725688073036,0.44143,2265.9,2265.4,3.2078]
[1725688073234,0.44153,2265.4,2265.3,0.3763]
[1725688080344,3.64932,2265.5,2265.3,0.3763]
[1725688080635,3.64931,2265.5,2265.4,0.3935]
[1725688081041,0.44151,2265.5,2265.4,0.3935]
[1725688081234,0.44153,2265.4,2265.3,0.3763]
[1725688081434,0.44152,2265.5,2265.3,0.3763]
[1725688081631,0.44152,2265.5,2265.3,0.81785]
[1725688081831,0.44152,2265.5,2265.3,0.81784]
[1725688082437,1.10365,2265.8,2265.3,0.3763]
[1725688082640,1.10371,2265.7,2265.3,0.3763]
[1725688082848,0.44153,2265.4,2265.3,0.3763]
[1725688086849,1.54536,2265.4,2265.3,0.3763]
[1725688087043,0.44165,2264.8,2264.6,9.06725612]
[1725688087243,0.44165001,2264.8,2264.7,1.1314]
[1725688089038,0.44165001,2264.8,2264.7,0.7581]
[1725688090451,1.54583,2264.7,2264.6,8.62557612]
[1725688090655,0.4417,2264.5,2264.4,1.1502]
[1725688094453,1e-08,2264.8,2264.4,11.5662]
[1725688094648,1e-08,2264.8,2264.7,3.05]
[1725688094649,0.44165001,2264.8,2264.7,3.05]
[1725688095357,1e-08,2264.8,2264.7,3.05]
[1725688095652,1e-08,2264.8,2264.7,3.49166]
[1725688095852,0.44165001,2264.8,2264.6,3.2078]
[1725688096154,1e-08,2264.8,2264.6,3.2078]
[1725688096352,0.4417,2264.5,2264.4,1.1502]
[1725688096742,1e-08,2264.8,2264.4,1.1502]
[1725688097050,0.44169,2264.6,2264.4,1.1502]
[1725688097550,0.44169,2264.6,2264.4,1.59192]
[1725688097753,0.44168,2264.7,2264.4,1.59192]
[1725688099353,0.44169,2264.6,2264.4,1.59192]
[1725688100052,0.44169,2264.6,2264.4,1.1502]
[1725688100245,0.44169,2264.6,2264.4,1.59192]
[1725688100754,0.44168,2264.7,2264.4,1.59192]
[1725688101059,0.44169,2264.6,2264.4,1.59192]
[1725688101559,0.44168,2264.7,2264.4,1.59192]
[1725688101750,0.44169,2264.6,2264.4,1.1502]
[1725688103160,0.44169,2264.6,2264.4,1.59192]
[1725688104253,1e-08,2264.8,2264.7,0.44166]
[1725688104660,1e-08,2264.8,2264.7,10.85686]
[1725688104857,0.44157,2265.2,2265.0,0.4416]
[1725688105154,0.44157,2265.2,2265.1,1.1268]
[1725688105550,0.44156,2265.3,2265.1,1.1268]
[1725688107358,0.44157,2265.2,2265.1,1.1268]
[1725688110661,0.44161,2265.0,2264.7,3.05]
[1725688110869,0.4416,2265.1,2264.8,1.59184]
[1725688111071,1.48621,2265.3,2264.8,1.1502]
[1725688111262,0.4416,2265.1,2264.8,1.59184]
[1725688111460,0.4416,2265.1,2264.3,1.14267489]
[1725688111461,3.05,2265.0,2264.3,1.14267489]
[1725688111666,0.44176,2264.2,2264.1,1.1301]
[1725688112069,0.44176,2264.2,2264.1,0.3722]
[1725688115565,4.31215,2264.4,2263.9,0.3655]
[1725688115873,0.44179,2264.1,2263.9,0.3655]
[1725688116174,0.4418,2264.0,2263.9,0.3655]
[1725688119172,0.44182,2263.9,2263.8,0.3926]
[1725688123477,0.44181,2264.0,2263.8,0.3926]
[1725688123672,0.44181,2264.0,2263.8,0.83444]
[1725688126075,3.6062,2264.1,2263.8,0.83444]
[1725688126076,3.64959,2264.1,2263.9,0.44181]
[1725688126276,0.44178,2264.2,2264.0,0.8022]
[1725688126580,0.44178,2264.1,2264.0,0.3604]
[1725688128773,0.44178,2264.2,2264.0,0.3604]
[1725688129079,0.44178,2264.2,2264.1,0.3915]
[1725688129673,0.44182,2263.9,2263.8,3.05]
[1725688129873,0.44182,2263.9,2263.6,7.0158]
[1725688130078,0.44181,2264.0,2263.8,0.44184]
[1725688130476,10.6746,2263.9,2263.3,1.14267489]
[1725688130681,0.44198,2263.1,2263.0,3.2078]
[1725688130879,0.44198,2263.1,2262.9,0.758]
[1725688130880,0.44198,2263.1,2262.9,1.20002]
[1725688131183,0.44198,2263.1,2262.9,0.758]
[1725688131579,1.10485,2263.3,2262.9,0.758]
[1725688131774,0.442,2263.1,2262.9,1.20002]
[1725688131982,0.442,2263.1,2262.9,0.758]
[1725688132182,0.442,2263.0,2262.9,0.758]
[1725688134180,0.442,2263.0,2262.9,1.20002]
[1725688135386,0.442,2263.0,2262.9,0.758]
[1725688137180,0.442,2263.0,2262.9,1.20002]
[1725688140087,0.44199,2263.1,2262.9,1.20002]
[1725688142193,0.44199,2263.1,2263.0,0.442]
[1725688142393,0.44199,2263.1,2262.9,1.2]
[1725688144495,0.44199,2263.1,2263.0,0.442]
[1725688144991,0.44199,2263.1,2262.9,1.2]
[1725688145894,0.442,2263.0,2262.9,1.2]
[1725688146496,0.44199,2263.1,2262.9,1.2]
[1725688147198,0.44199,2263.1,2263.0,0.442]
[1725688147392,1e-08,2263.1,2263.0,0.442]
[1725688147699,0.44199001,2263.1,2262.9,1.2]
[1725688150099,0.442,2263.0,2262.9,1.2]
[1725688150496,0.44199001,2263.1,2262.9,1.2]
[1725688151599,0.442,2263.0,2262.9,1.2]
[1725688152400,0.44199001,2263.1,2262.9,1.2]
[1725688152602,0.442,2263.0,2262.9,1.2]
[1725688152796,1e-08,2263.1,2262.9,1.2]
[1725688153000,0.442,2263.0,2262.9,1.2]
[1725688153390,0.44199001,2263.1,2262.9,1.2]
[1725688154100,5.5242,2263.0,2262.2,0.44215]
[1725688154300,5.5242,2263.0,2262.3,1.1233]
[1725688154301,3.2078,2262.8,2262.3,1.1233]
[1725688154505,0.44214,2262.3,2261.9,0.4422]
[1725688154694,3.05,2262.6,2262.0,0.7299]
[1725688154994,0.44217,2262.2,2262.0,0.7299]
[1725688156204,0.44215,2262.3,2262.0,0.7299]
[1725688157602,0.44215,2262.3,2261.6,3.2078]
[1725688157603,4.4208,2262.2,2261.6,3.2078]
[1725688157794,0.44223,2261.9,2261.6,3.2078]
[1725688158596,0.44224,2261.8,2261.6,3.2078]
[1725688158996,0.44225,2261.7,2261.6,3.2078]
[1725688159501,0.44223,2261.8,2261.6,3.2078]
[1725688160603,0.44225,2261.7,2261.6,3.2078]
[1725688160797,0.44224,2261.8,2261.6,3.2078]
[1725688161799,0.44222,2261.9,2261.6,3.2078]
[1725688162002,0.4423,2261.5,2261.3,0.7688]
[1725688162203,0.44231,2261.4,2261.3,0.3849]
[1725688162898,0.44233,2261.3,2261.2,3.5727]
[1725688163609,0.44233,2261.3,2261.2,3.2078]
[1725688164311,0.44232,2261.4,2261.2,3.2078]
[1725688164507,0.4423,2261.5,2261.2,3.2078]
[1725688164696,0.4423,2261.5,2261.3,0.382]
[1725688164905,6.2578,2261.7,2261.3,0.382]
[1725688165201,0.44229,2261.5,2261.3,0.7524]
[1725688166103,3.44617561,2261.9,2261.3,0.7524]
[1725688166307,3.05,2261.9,2261.3,0.7524]
[1725688166505,0.44227,2261.6,2261.3,0.7524]
[1725688166907,7.95291053,2261.9,2261.4,0.4423]
[1725688167101,0.44225,2261.7,2261.5,0.371]
[1725688170009,0.44224,2261.8,2261.5,0.81329]
[1725688170204,3.05,2261.9,2261.5,0.371]
[1725688170509,0.44226,2261.7,2261.5,0.371]
[1725688171205,3.05,2261.9,2261.5,0.371]
[1725688171407,0.44223,2261.8,2261.5,0.81328]
[1725688172700,0.44225,2261.7,2261.5,0.81328]
[1725688173207,0.44227,2261.6,2261.5,0.371]
[1725688174709,0.44227,2261.6,2261.4,0.4423]
[1725688175112,0.44227,2261.6,2261.5,0.7914]
[1725688176211,0.44226,2261.7,2261.5,1.23369]
[1725688176812,0.44227,2261.6,2261.5,0.7914]
[1725688178016,7.36336,2261.9,2261.5,0.7914]
[1725688178208,7.36336,2261.9,2261.6,0.44227]
[1725688178209,0.44224,2261.8,2261.6,0.44227]
[1725688178721,0.44223,2261.8,2261.5,1.23367]
[1725688178920,0.44225,2261.7,2261.5,1.23367]
[1725688181016,0.44224,2261.8,2261.6,0.44226]
[1725688181217,0.44223,2261.8,2261.6,0.44225]
[1725688185718,0.44223,2261.8,2261.7,0.44225]
[1725688185914,3.49223,2261.9,2261.7,0.44225]
[1725688186114,3.49223,2261.9,2261.8,0.3875]
[1725688187626,0.44226,2261.7,2261.5,1.23368]
[1725688189126,3.05,2261.9,2261.5,0.7914]
[1725688189127,0.44227,2261.6,2261.5,0.7914]
[1725688190237,0.81757,2261.6,2261.5,0.3966]
[1725688192939,0.44229,2261.5,2261.4,0.3736]
[1725688193134,0.81758,2261.6,2261.4,1.21411]
[1725688193534,0.44229,2261.5,2261.4,0.7718]
[1725688194444,0.44229,2261.5,2261.4,0.3982]
[1725688196444,0.44229,2261.5,2261.3,0.44232]
[1725688197239,0.4423,2261.5,2261.3,0.44233]
[1725688198644,0.4423,2261.5,2261.3,1.58500489]
[1725688199546,0.4423,2261.5,2261.4,3.9163326]
[1725688200852,4.8639,2261.5,2261.4,1.1490954]
[1725688201345,5.96963,2261.5,2261.4,1.1490954]
[1725688202342,0.4423,2261.5,2261.4,1.1490954]
[1725688202538,0.3753,2261.6,2261.4,3.36188241]
[1725688202743,4.31327,2262.1,2261.6,0.44226]
[1725688202940,1.71223,2261.9,2261.7,1.89592188]
[1725688203344,0.44223,2261.8,2261.7,1.89592188]
[1725688203533,0.44223,2261.8,2261.7,4.10840722]
[1725688203738,0.44223,2261.8,2261.7,1.89592188]
[1725688204246,1.71222,2261.9,2261.7,4.66291406]
[1725688204434,1.71222,2261.9,2261.8,1.14947748]
[1725688209845,1.71222,2261.9,2261.7,1.18905]
[1725688211044,1.27,2261.9,2261.8,0.44223]
[1725688211341,1.27,2261.9,2261.7,1.18904]
[1725688211749,1.71221,2261.9,2261.7,2.33851748]
[1725688212351,1.27,2261.9,2261.8,0.44223]
[1725688213042,3.44617561,2262.5,2261.9,1.10554]
[1725688213248,1.27,2262.5,2262.2,1.14895876]
[1725688213442,1.27,2262.5,2262.4,0.44211]
[1725688213650,1.27,2262.5,2262.3,2.33697876]
[1725688213945,1.71209,2262.5,2262.4,0.3742]
[1725688214543,0.44211,2262.4,2262.3,0.7459]
[1725688214744,0.44213,2262.3,2262.2,0.3841]
[1725688216046,0.44215,2262.2,2262.0,1.19428]
[1725688216254,0.44215,2262.2,2262.0,1.57838]
[1725688217253,0.44215,2262.3,2262.0,1.57838]
[1725688217847,0.44215,2262.3,2262.1,0.44216]
[1725688218447,0.44216,2262.2,2262.0,1.57838]
[1725688220257,0.44217,2262.1,2262.0,1.1362]
[1725688220553,4.53042,2262.4,2261.8,4.79897876]
[1725688220554,0.4422,2262.0,2261.8,4.79897876]
[1725688221557,0.44221,2261.9,2261.8,3.2078]
[1725688221753,0.4422,2262.0,2261.8,4.79898876]
[1725688221952,0.3861,2262.1,2261.8,3.2078]
[1725688222158,0.44221,2261.9,2261.8,3.2078]
[1725688222958,0.80351,2262.0,2261.8,3.2078]
[1725688223152,0.3613,2262.0,2261.8,3.2078]
[1725688223346,0.80351,2262.0,2261.8,3.2078]
[1725688223755,0.3613,2262.0,2261.8,3.2078]
[1725688223955,0.80351,2262.0,2261.8,3.2078]
[1725688224146,0.44221,2261.9,2261.8,3.2078]
[1725688224855,0.44221,2261.9,2261.7,1.60835]
[1725688227555,3.06,2262.2,2261.7,5.52285876]
[1725688227755,3.06,2262.2,2261.8,0.44221]
[1725688228154,0.44219,2262.0,2261.8,0.44221]
[1725688228563,3.06,2262.2,2261.7,5.52285876]
[1725688228770,0.44218,2262.1,2261.9,0.4422]
[1725688229460,0.44217,2262.2,2261.7,5.52285876]
[1725688229661,0.44218,2262.1,2261.9,0.4422]
[1725688230559,0.44222,2261.9,2261.7,2.75729876]
[1725688231554,0.44221,2262.0,2261.8,0.44223]